Cogmind - Beta 16.1 @@@ ROGUE MODE // 2026.03.09 @ 04:16:37 Player: shapeshifter Result: Destroyed by JY-TVS(R) with Subdweller Laser Performance ------------- Evolutions (0) 0 Regions Visited (2) 400 Robots Destroyed (28) 140 Value Destroyed (831) 831 Prototype IDs (13) 260 Alien Tech Used (0) 0 Bonus (0) 0 TOTAL SCORE: 1631 Bonus ------- None Cogmind --------- Core Integrity 0/250 Matter 237/300 Energy 100/100 System Corruption 0% Temperature Cool (12) Movement Core (50) Location -10/Subcaves Parts ------- > --- POWER (1) -------- (None) > --- PROPULSION (2) --- (None) > --- UTILITY (2) ------ (None) > --- WEAPON (2) ------- (None) > --- INVENTORY (5) ---- High-capacity Storage Unit Gun Armor Shield Generator Subdweller Beam Cannon Peak State ------------ > --- POWER ------------ Light Ion Engine > --- PROPULSION ------- Wheel Compact Wheel > --- UTILITY ---------- Large Storage Unit Makeshift Thermal Plating > --- WEAPON ----------- Subdweller Beam Cannon Barrage Gun > --- INVENTORY -------- Heat Sink High-capacity Storage Unit Improved Terrain Scanner Light Armor Plating Shield Generator Hacking Suite Subdweller Laser Assault Rifle Assault Rifle Battle Rifle Subdweller Machine Gun Rocket Launcher Datajack [Rating: 15] Favorites ----------- Power Ion Engine Engine Ion Engine Propulsion Wheel Treads Light Treads Wheel Wheel Utility Large Storage Unit Device Seismic Detector Storage Large Storage Unit Protection Light Armor Plating Weapon Assault Rifle Energy Gun Small Laser Energy Cannon Subdweller Beam Cannon Ballistic Gun Assault Rifle Ballistic Cannon Battle Cannon Launcher Rocket Launcher Build | -11 -10 -10 ------- Run | Yrd Mat Sub Slots Evolved . | . . . Power . | . . . Propulsion . | . . . Utility . | . . . Weapon . | . . . Parts Attached 27 | 7 10 10 Power 3 | 1 1 1 Engine 3 | 1 1 1 Core . | . . . Reactor . | . . . Propulsion 7 | 2 2 3 Treads 3 | 2 . 1 Leg . | . . . Wheel 4 | . 2 2 Hover . | . . . Flight . | . . . Utility 8 | 2 3 3 Device 2 | 1 1 . Storage 3 | 1 1 1 Processor . | . . . Hackware . | . . . Protection 3 | . 1 2 Artifact . | . . . Weapon 9 | 2 4 3 Energy Gun 2 | 1 1 . Energy Cannon 1 | . . 1 Ballistic Gun 4 | 1 2 1 Ballistic Cannon 1 | . . 1 Launcher 1 | . 1 . Special Weapon . | . . . Impact Weapon . | . . . Slashing Weapon . | . . . Piercing Weapon . | . . . Special Melee Weapon . | . . . Unidentified Prototypes . | . . . Parts Lost 11 | . 2 9 Power 1 | . . 1 Propulsion 5 | . 1 4 Utility 2 | . 1 1 Weapon 3 | . . 3 Highest Loss Streak 7 | . 2 7 To Critical Strikes . | . . . Average Backups 9 | 3 9 10 Power . | . 1 . Propulsion 1 | 1 1 . Utility 3 | . 3 4 Weapon 3 | . 2 4 Tool/Special . | . . . Unused Backups 11 | . . 11 Power . | . . . Propulsion . | . . . Utility 4 | . . 4 Weapon 6 | . . 6 Tool/Special 1 | . . 1 Average Slot Usage (%) 94 | . 95 94 Engine 13 | . 14 13 Treads 10 | . 13 6 Wheel 15 | . 10 20 Device 1 | . 2 . Storage 12 | . 14 10 Protection 12 | . 11 13 Energy Gun 2 | . 4 . Energy Cannon 4 | . . 9 Ballistic Gun 18 | . 23 12 Ballistic Cannon 2 | . . 5 Peak Build Rating 15 | 7 9 15 Average Rating 8 | 5 7 10 On Entrance 5 | . 7 8 Avg Prop Armor Cover (%) 8 | . 9 7 Naked Turns 1 | . . 1 Heaviest Build 38 | 13 34 38 Greatest Support 40 | 40 40 26 Greatest Overweight (x) 3 | . 3 3 Average Overweight (x) 1 | . 2 1 Largest Inventory Capacity 20 | 8 15 20 Average Capacity 13 | 7 14 12 Most Carried 15 | 6 13 15 Average Carried 9 | 3 9 10 Final Capacity 15 | 8 15 5 Final Carried 12 | 5 12 4 Class Distribution -------------------- 100% | Mutant Dominant Class ---------------- Mutant | -10/Materials Mutant | -10/Subcaves Resources | -11 -10 -10 ----------- Run | Yrd Mat Sub Matter Collected 813 | 277 226 310 Remotely . | . . . Salvage Created 1072 | 130 498 444 Parts 63 | 11 30 22 Haulers Intercepted 1 | . 1 . Recyclers Shooed 2 | 1 1 . Parts Field Recycled . | . . . Retrieved Matter . | . . . Parts Self-Destructed 13 | . . 13 Prevented . | . . . Parts Restored . | . . . Kills | -11 -10 -10 ------- Run | Yrd Mat Sub Combat Hostiles Destroyed 19 | . 9 10 Guns 13 | . 9 4 Cannons 4 | . . 4 AOE 1 | . . 1 Classes Destroyed 9 | 2 5 2 Worker 1 | . 1 . Tunneler 2 | 2 . . Hauler 1 | . 1 . Recycler 1 | 1 . . Operator 1 | . 1 . Watcher 3 | . 3 . Grunt 10 | . 9 1 Sentry 1 | . . 1 Subdweller 8 | . . 8 Best Kill Streak 3 | 2 3 2 Combat Bots Only 3 | . 3 2 Max Kills in Single Turn 1 | 1 1 1 Gunslinging . | . . . Exploded 1 | . . 1 Melee . | . . . Uniques/NPCs Destroyed . | . . . Combat | -11 -10 -10 -------- Run | Yrd Mat Sub Hostile Shots Fired 141 | . 79 62 Missed 38 | . 20 18 Hits 103 | . 59 44 Projectile 103 | . 59 44 Critical Strikes 3 | . 2 1 Damage Taken 1683 | . 751 932 Core 262 | . 125 137 Absorbed by Shields . | . . . Ignored by Resistances 22 | . . 22 Core Remaining (%) 100 | 100 . . Volleys Fired 99 | 8 54 37 Largest 2 | 2 2 2 Hottest 113 | 60 85 113 Shots Fired 187 | 16 105 66 Gun 148 | 16 102 30 Cannon 35 | . . 35 Launcher 4 | . 3 1 Special . | . . . Kinetic 128 | 8 71 49 Thermal 55 | 8 31 16 Explosive 4 | . 3 1 Electromagnetic . | . . . Robot Hit Streak 13 | 4 13 10 Robot Miss Streak 4 | 1 4 1 Penetration Max . | . . . Secondary Targets 3 | . 3 . Max Gunslinging Chain 1 | . 1 . Shots Hit Robots 116 | 10 64 42 Core Hits 49 | 5 28 16 Critical Kills 1 | . . 1 Critical Parts Destroyed . | . . . Critical Strikes 1 | . . 1 Meltdown 1 | . . 1 Melee Attacks . | . . . Impact . | . . . Slashing . | . . . Piercing . | . . . Sneak Attacks . | . . . Combat Hostiles . | . . . Follow-up Attacks . | . . . Damage Inflicted 1731 | 96 713 922 Guns 1143 | 96 713 334 Cannons 434 | . . 434 Explosions 154 | . . 154 Melee . | . . . Ramming . | . . . Kinetic 1032 | 52 460 520 Thermal 545 | 44 253 248 Explosive 154 | . . 154 Electromagnetic . | . . . Impact . | . . . Slashing . | . . . Piercing . | . . . Highest Corruption . | . . . Average Corruption . | . . . Corruption Purged . | . . . Corruption Blocked . | . . . Overload Shots . | . . . Overflow Damage 5 | . . 5 Projectiles . | . . . Explosions 5 | . . 5 Melee . | . . . Knockbacks 4 | . . 4 Impact . | . . . Kinetic 4 | . . 4 Secondary . | . . . Self-Inflicted Damage 33 | . . 33 Shots 1 | . . 1 Rammed . | . . . Targets Rammed . | . . . Kicked . | . . . Crushed . | . . . Highest Temperature 254 | 40 254 42 Average Temperature 63 | 16 78 20 Received Heat Transfer 699 | . 447 252 Siege Activations . | . . . Martial Activations . | . . . Shielding Activations . | . . . Robots Disrupted . | . . . Combat Hostiles . | . . . Robots Corrupted . | . . . Combat Hostiles . | . . . Parts Fried . | . . . Impact Corruptions . | . . . Robots Melted 1 | . . 1 Combat Hostiles 1 | . . 1 Parts Melted . | . . . Heat Transferred 1006 | 100 573 333 Parts Sabotaged . | . . . Parts Stolen . | . . . Parts Stripped . | . . . Power Chain Reactions . | . . . Alert | -11 -10 -10 ------- Run | Yrd Mat Sub Maximum Alert Level . | . . . Low Security (%) 100 | 100 100 . Level 1 . | . . . Level 2 . | . . . Level 3 . | . . . Level 4 . | . . . Level 5 . | . . . High Security . | . . . Max Security . | . . . Peak Influence 96 | 10 96 . Initial . | . . . Average 22 | . 24 . Influence Increases 377 | 15 312 50 Destroy 0b10 Robot/C 220 | . 180 40 Destroy 0b10 Robot/NC 45 | 15 30 . Destroy Leader 58 | . 48 10 Successful Hack 33 | . 33 . Destroy Structure 21 | . 21 . Influence Decreases 377 | 15 312 50 Time Decay 365 | 15 312 38 Lost Part 12 | . . 12 Squads Dispatched 2 | . 2 . Investigation 1 | . 1 . Extermination . | . . . Reinforcement 1 | . 1 . Assault . | . . . Garrison . | . . . Intercept . | . . . Searches Triggered . | . . . Construction Impeded . | . . . Haulers Reinforced . | . . . Active Scanning Responses . | . . . Cargo Convoy Interrupts . | . . . Stealth | -11 -10 -10 --------- Run | Yrd Mat Sub Distress Signals . | . . . Communications Jammed . | . . . Distress Signals . | . . . Times Spotted 27 | . 14 13 Peak Tracking Total 5 | . 5 4 Tactical Retreats . | . . . Traps | -11 -10 -10 ------- Run | Yrd Mat Sub Traps Triggered 2 | . 2 . Indirectly . | . . . Trap Hack Attempts . | . . . Triggered . | . . . Disarmed . | . . . Reprogrammed . | . . . Reused . | . . . Traps Extracted . | . . . Installed . | . . . Triggered . | . . . Machines | -11 -10 -10 ---------- Run | Yrd Mat Sub Machines Disabled 1 | . . 1 Max in Single Turn 1 | . . 1 Machines Repaired . | . . . Machines Dismantled . | . . . Machines Sabotaged . | . . . Overloaded Fab Kills . | . . . Hacking | -11 -10 -10 --------- Run | Yrd Mat Sub Machines Accessed 7 | . 5 2 Terminals 5 | . 5 . Fabricators . | . . . Repair Stations . | . . . Recycling Units . | . . . Scanalyzers . | . . . Garrison Access . | . . . Total Hacks 17 | . 13 4 Successful 12 | . 8 4 Failed 5 | . 5 . Catastrophic 2 | . 2 . Database Lockouts . | . . . Manual 13 | . 13 . Terminals 13 | . 13 . Fabricators . | . . . Repair Stations . | . . . Recycling Units . | . . . Scanalyzers . | . . . Garrison Access . | . . . Terminal Hacks 5 | . 1 4 Record 3 | . . 3 Zone Layout 1 | . 1 . Proto ID Catalog 1 | . . 1 Fabricator Hacks . | . . . Repair Station Hacks . | . . . Recycling Unit Hacks . | . . . Scanalyzer . | . . . Garrison Access Hacks . | . . . Unauthorized Hacks 7 | . 7 . Terminals 7 | . 7 . Botnet 2 | . 2 . Skim 5 | . 5 . Fabricators . | . . . Repair Stations . | . . . Recycling Units . | . . . Scanalyzers . | . . . Garrison Access . | . . . Data Cores Recovered 1 | . 1 . Used . | . . . Hacking Detections 4 | . 4 . Full Trace Events . | . . . Feedback Events . | . . . Feedback Blocked . | . . . Robot Schematics Acquired . | . . . Robots Built . | . . . Authchips . | . . . Time . | . . . Total Robot Build Rating . | . . . Part Schematics Acquired . | . . . Parts Built . | . . . Authchips . | . . . Time . | . . . Total Part Build Rating . | . . . Part Studies Acquired . | . . . Parts Repaired . | . . . Time . | . . . Parts Recycled . | . . . Recycled Matter . | . . . Retrieved Matter . | . . . Retrieved Components . | . . . Parts Scanalyzed . | . . . Part Schematics Acquired . | . . . Parts Damaged . | . . . Bothacking | -11 -10 -10 ------------ Run | Yrd Mat Sub Used RIF Installer . | . . . Robots Hacked . | . . . Non-combat . | . . . Combat . | . . . Robot Hacks Applied . | . . . Relay Couplers Released . | . . . Fabnet Peak Effective % . | . . . Robots Rewired . | . . . Allies Hacked . | . . . Hacks Repelled . | . . . Allies | -11 -10 -10 -------- Run | Yrd Mat Sub Total Allies . | . . . Largest Group . | . . . Highest-Rated Group . | . . . Highest-Rated Ally . | . . . Total Orders . | . . . Ally Attacks . | . . . Total Damage . | . . . Kills . | . . . Allies Corrupted . | . . . Allies Melted . | . . . Intel | -11 -10 -10 ------- Run | Yrd Mat Sub Active Infowar (turns) 174 | 22 152 . Seismic 174 | 22 152 . Robot Analysis Total . | . . . Derelict Logs Recovered 2 | . . 2 Drone Launches . | . . . Drone Recoveries . | . . . Exploration | -11 -10 -10 ------------- Run | Yrd Mat Sub Turns Passed 2402 | 115 1280 1007 Spaces Moved 1247 | 52 533 662 Core 10 | 10 . . Treads 287 | 42 183 62 Legs . | . . . Wheels 950 | . 350 600 Hover . | . . . Flight . | . . . Fastest Speed 50 | 50 95 95 Average Speed 137 | 138 153 124 Slowest Speed 240 | 160 240 240 Overloaded Moves . | . . . Propulsion Burnouts . | . . . Robots Hopped . | . . . Potential Cave-ins . | . . . Cave-ins Triggered . | . . . Exploration Rate (%) 49 | 4 91 53 Regions Visited 2 Branch Regions 1 Pre-discovered Areas 2 | . 1 1 Known Exits Taken 1 | . 1 . Unknown Exits Taken 1 | 1 . . Scrap Searched 6 | . . 6 Spaces Dug . | . . . Terrain Destroyed 37 | . 34 3 Melee . | . . . Projectile . | . . . AOE 37 | . 34 3 Terrain Rammed . | . . . Walls Destroyed . | . . . Machines Disabled . | . . . Actions | -11 -10 -10 --------- Run | Yrd Mat Sub Total 1757 | 81 894 782 Wait 319 | 3 276 40 Move 1245 | 51 532 662 Hop . | . . . Pick Up 37 | 12 15 10 Fast Attach 1 | . . 1 Attach 15 | 7 5 3 Detach 1 | . . 1 Swap 17 | . 6 11 Drop 23 | . 6 17 Fire 99 | 8 54 37 Melee . | . . . Ram . | . . . Kick . | . . . Crush . | . . . Escape Stasis . | . . . Rewire . | . . . Trap . | . . . Miscellaneous . | . . . Route ------- -11/Scrapyard -10/Materials (discovered 5 exits: *Mat x3 / [*Min] / *Sub) -10/Subcaves (discovered 3 exits: *Mat x2 / Rec) History --------- Turn | Location | Event 7 | -11/Scrapyard | Discovered new exit (range 16) 116 | -11/Scrapyard | Entered Materials 311 | -10/Materials | Build established: Mutant 704 | -10/Materials | Discovered new exit (range 10) 843 | -10/Materials | Discovered new exit (range 14) 1002 | -10/Materials | Discovered new exit (range 7) 1077 | -10/Materials | Identified exit to Subcaves 1077 | -10/Materials | Identified exit to Materials 1140 | -10/Materials | Learned Storage security intel 1192 | -10/Materials | Learned location of Mines (-10) 1236 | -10/Materials | Learned location of 2 exits from Materials 1272 | -10/Materials | Learned 4 Subcaves zone layouts 1318 | -10/Materials | Learned 2 Storage zone layouts 1396 | -10/Materials | Entered Subcaves 1397 | -10/Subcaves | Identified exit to Materials 1409 | -10/Subcaves | Core integrity fell below 50% 1675 | -10/Subcaves | Visited Clippyterm 1678 | -10/Subcaves | Identified exit to Recycling 1918 | -10/Subcaves | Disturbed a concealed Subdweller 1986 | -10/Subcaves | A swath of the cavern ceiling suddenly collapsed 2233 | -10/Subcaves | Learned Materials garrison access intel 2256 | -10/Subcaves | Visited 4L-MR0's lab 2270 | -10/Subcaves | Found Gun Armor 2381 | -10/Subcaves | Core integrity fell below 20% 2403 | -10/Subcaves | Destroyed by JY-TVS(R) with Subdweller Laser Last Messages --------------- 02344_ Lgt. Nuclear Core fries itself beyond repair. 02375_ Sub. Beam Cannon shoots sparks and powers down. 02375_ YK-BL5(R) knocked back. 02387_ Critical hit (Destroy). 02388_ Lgt. Ion Engine destroyed. 02390_ Scrap Shield destroyed. 02391_ Com. Wheel destroyed. 02392_ 8D-FT9(R) destroyed. 02392_ Rocket Launcher destroyed. 02392_ Destroyed Rocket Launcher. 02393_ Battle Cannon destroyed. 02393_ Wheel destroyed. 02397_ YK-BL5(R) destroyed. 02399_ BV-PW2(R) affixes Scrap Shield Fragment to Scrap Shield. 02400_ JY-TVS(R) affixes Scrap Shield Fragment to Scrap Shield. 02403_ Barrage Gun destroyed. Map ----- +----------------------------------------------------+ | ??????????????# ### #????????????????? | | ??????????????##### ##?## ##????????????????? | | ??????????????????####??# #????????????????? | | ????????????????????????## #????????????????? | | ?????????????????????????# #????????????????? | | ????????????????????????## #????????????????? | | ????????????????????????# %##????????????????? | | ????????????????????????# #?????????????????? | | ????????????????????????## ##????????????????? | | ?????????????????????????# #????????????????? | | ?????????????????????????#% #????????????????? | | ????????????????????????## #????????????????? | | ????????????????????????# #????????????????? | | ????????????????????????# ##????????????????? | | ????????????????????????## ###???????????????? | | ????????????????????????# #???????????????? | | ????????????????????????### ##???????????????? | | ??????????????????????????#!!#????????????????? | | ???????????????????########%&##???????????????? | | ??????????????????## ##??????????????? | | ??????????????????# R #??????????????? | | ?????????????????## #??????????????? | | ?????????????????# R% #??????????????? | | ?????????????????# ##??????????????? | | ?????????????????# &%##??????????????? | | ??????????????? ?# @ %%& #??????????????? | | ??????????????? ##; #?????????????? | | ??????????????? ????# % ##?????????????? | | ???????????????# ??????# ##??????????????? | | ???????????????# ????????# #???????????????? | | ???????????????#??????????"" ##???????????????? | | ??????????????????????????#"" ????????????????? | | ??????????????????????????" "#????????????????? | | ??????????????????????????# #????????????????? | | ??????????????????????????" ????????????????? | | ?????????????????????????? ?????????????????? | | ?????????????????????????? ??????????????????? | | ???????????????????????????"??????????????????? | | ??????????????????????????????????????????????? | | ??????????????????????????????????????????????? | | ??????????????????????????????????????????????? | | ??????????????????????????????????????????????? | | ??????????????????????????????????????????????? | | ??????????????????????????????????????????????? | | ??????????????????????????????????????????????? | | ??????????????????????????????????????????????? | | ??????????????????????????????????????????????? | | ??????????????????????????????????????????????? | | ??????????????????????????????????????????????? | | ??????????????????????????????????????????????? | +----------------------------------------------------+ Best States ------------- Heat Dissipation 35 Energy Generation 10 Energy Capacity 250 Matter Stores 300 Matter Capacity 300 Sight Range 16 Terrain Scan Density 10 Armor Coverage 800 Resistance: TH 10 Evasion (%) 41 Recoil Reduction 2 Item Schematics ----------------- None Robot Schematics ------------------ None Fabricated ------------ Nothing Repaired ---------- Nothing Studied --------- None Alien Tech Used ----------------- None Achievements -------------- None Challenges ------------ None Game ------ Seed VortexStructuralDriveblaster Manual? 0 Play Time 00:11:52 Cumulative 752.3 hours Start 2026.03.08 @ 23:26:18 End 2026.03.09 @ 04:16:37 Sessions 5 Manual Loads 0 Difficulty Rogue Special Mode None Game No. 928 Rogue 928 Adventurer 0 Explorer 0 Win Type - Total 28 Types 14/1/4/3/2/0/2/2/0/0 Lore% 97 Gallery% 93 Achievement% 85 Wizard Run 0 Options --------- Layout 2 ASCII 0 Keyboard 0 Movement Mouse Keybinds 0 Fullscreen 2 Font 24/Tamsyn Map View 50x44 Zoom Use 0% Tactical HUD 1 Map Filters NONE Filters NONE Steam 1 RUN: 78b0a458-2dda-4cf8-8f55-bd29c23de37b